[Event "*** Titled Tuesday 3|2 Blitz"]
[Site "Chess.com"]
[Date "2017.06.06"]
[Round "5"]
[White "andreimacovei2000"]
[Black "WeiYi1999"]
[Result "1/2-1/2"]
[WhiteElo "2385"]
[BlackElo "2126"]
[TimeControl "180+2"]
[EndTime "14:54:27 PDT"]
[Termination "Game drawn - insufficient material"]

1. e4 {[%clk 0:03:02]} 1... d5 {[%clk 0:02:56]} 2. exd5 {[%clk 0:03:01.9]} 2...
Qxd5 {[%clk 0:02:57.9]} 3. Nc3 {[%clk 0:03:03.2]} 3... Qa5 {[%clk 0:02:58.8]} 4.
d4 {[%clk 0:03:04.6]} 4... c6 {[%clk 0:03:00.1]} 5. Bc4 {[%clk 0:03:03.8]} 5...
Bf5 {[%clk 0:03:01.1]} 6. Nf3 {[%clk 0:03:04.4]} 6... e6 {[%clk 0:03:00.4]} 7.
Ne5 {[%clk 0:02:59]} 7... Nf6 {[%clk 0:02:39.6]} 8. Qe2 {[%clk 0:02:56.4]} 8...
Nbd7 {[%clk 0:02:35.6]} 9. O-O {[%clk 0:02:48.5]} 9... Bd6 {[%clk 0:02:27.4]}
10. Bf4 {[%clk 0:02:36]} 10... Qc7 {[%clk 0:02:23.8]} 11. Rfe1 {[%clk
0:02:35.9]} 11... O-O {[%clk 0:02:20.6]} 12. Rad1 {[%clk 0:02:35.6]} 12... Nb6
{[%clk 0:02:17.9]} 13. Bb3 {[%clk 0:02:34.4]} 13... Rad8 {[%clk 0:02:19.1]} 14.
Bg3 {[%clk 0:02:34.4]} 14... Nbd5 {[%clk 0:02:14.5]} 15. Nxd5 {[%clk 0:02:26.9]}
15... exd5 {[%clk 0:02:16.4]} 16. f3 {[%clk 0:02:24.9]} 16... Rfe8 {[%clk
0:02:10]} 17. Qf2 {[%clk 0:02:21.2]} 17... c5 {[%clk 0:02:04.6]} 18. c3 {[%clk
0:02:20.6]} 18... b6 {[%clk 0:02:05]} 19. Ba4 {[%clk 0:02:16.4]} 19... Re7
{[%clk 0:01:58.9]} 20. Nc6 {[%clk 0:02:08]} 20... Rxe1+ {[%clk 0:01:48.8]} 21.
Rxe1 {[%clk 0:02:09.9]} 21... Re8 {[%clk 0:01:50]} 22. Bxd6 {[%clk 0:02:04.6]}
22... Qxd6 {[%clk 0:01:51.9]} 23. Ne5 {[%clk 0:02:04.2]} 23... Re7 {[%clk
0:01:45.9]} 24. Qg3 {[%clk 0:01:55.1]} 24... Bg6 {[%clk 0:01:37.8]} 25. Nc6
{[%clk 0:01:31.4]} 25... Rxe1+ {[%clk 0:01:39.7]} 26. Qxe1 {[%clk 0:01:31.4]}
26... h6 {[%clk 0:01:30.3]} 27. Qe5 {[%clk 0:01:26.9]} 27... Qxe5 {[%clk
0:01:21.3]} 28. dxe5 {[%clk 0:01:28.8]} 28... Ne8 {[%clk 0:01:23.2]} 29. Ne7+
{[%clk 0:01:26.4]} 29... Kf8 {[%clk 0:01:23]} 30. Nxd5 {[%clk 0:01:27]} 30...
Bb1 {[%clk 0:01:17.3]} 31. a3 {[%clk 0:01:26.9]} 31... Ba2 {[%clk 0:01:13.6]}
32. Ne3 {[%clk 0:01:27.7]} 32... Nc7 {[%clk 0:01:12.6]} 33. f4 {[%clk
0:01:26.2]} 33... Nd5 {[%clk 0:01:09.1]} 34. Nxd5 {[%clk 0:01:25.8]} 34... Bxd5
{[%clk 0:01:11]} 35. Kf2 {[%clk 0:01:26.9]} 35... Ke7 {[%clk 0:01:04.5]} 36. g4
{[%clk 0:01:27.5]} 36... f6 {[%clk 0:01:04.8]} 37. exf6+ {[%clk 0:01:24.9]}
37... Kxf6 {[%clk 0:01:06.7]} 38. Ke3 {[%clk 0:01:24.4]} 38... Be6 {[%clk
0:01:04.7]} 39. Bd1 {[%clk 0:01:24.6]} 39... Bd5 {[%clk 0:01:01.9]} 40. Bf3
{[%clk 0:01:24.8]} 40... Bc4 {[%clk 0:00:59.3]} 41. b4 {[%clk 0:01:18.9]} 41...
g5 {[%clk 0:00:56.3]} 42. Be4 {[%clk 0:01:16.5]} 42... cxb4 {[%clk 0:00:52.9]}
43. cxb4 {[%clk 0:01:16]} 43... a5 {[%clk 0:00:54]} 44. bxa5 {[%clk 0:01:05.2]}
44... bxa5 {[%clk 0:00:55.9]} 45. Bf3 {[%clk 0:00:56.8]} 45... Ke6 {[%clk
0:00:50.9]} 46. Kd4 {[%clk 0:00:54.4]} 46... Ba6 {[%clk 0:00:44.6]} 47. f5+
{[%clk 0:00:55]} 47... Kd6 {[%clk 0:00:35.9]} 48. Bd1 {[%clk 0:00:52.1]} 48...
Bb5 {[%clk 0:00:34.6]} 49. a4 {[%clk 0:00:43.9]} 49... Be8 {[%clk 0:00:31.2]}
50. Bb3 {[%clk 0:00:41.4]} 50... Bc6 {[%clk 0:00:27.1]} 51. f6 {[%clk
0:00:41.8]} 51... Bd7 {[%clk 0:00:23.7]} 52. h3 {[%clk 0:00:39.9]} 52... Bc6
{[%clk 0:00:21.3]} 53. f7 {[%clk 0:00:20.5]} 53... Ke7 {[%clk 0:00:23.2]} 54.
Kc5 {[%clk 0:00:16.2]} 54... Bg2 {[%clk 0:00:21.4]} 55. Kb5 {[%clk 0:00:14.3]}
55... Bxh3 {[%clk 0:00:21.7]} 56. Bd1 {[%clk 0:00:14.7]} 56... h5 {[%clk
0:00:15.4]} 57. gxh5 {[%clk 0:00:15.1]} 57... Kxf7 {[%clk 0:00:14.9]} 58. Kxa5
{[%clk 0:00:16]} 58... g4 {[%clk 0:00:11.9]} 59. Kb6 {[%clk 0:00:16]} 59... g3
{[%clk 0:00:08.4]} 60. Bf3 {[%clk 0:00:16.3]} 60... g2 {[%clk 0:00:09.5]} 61.
Bxg2 {[%clk 0:00:16.4]} 61... Bxg2 {[%clk 0:00:11.4]} 62. a5 {[%clk 0:00:16.2]}
62... Kg7 {[%clk 0:00:12.5]} 63. a6 {[%clk 0:00:17]} 63... Kh6 {[%clk
0:00:13.8]} 64. a7 {[%clk 0:00:18.3]} 64... Kxh5 {[%clk 0:00:13.9]} 65. Kc7
{[%clk 0:00:20.2]} 65... Bh1 {[%clk 0:00:14]} 66. Kb8 {[%clk 0:00:22.1]} 66...
Bg2 {[%clk 0:00:15.1]} 67. a8=Q {[%clk 0:00:23.4]} 67... Bxa8 {[%clk 0:00:12.4]}
1/2-1/2

[Event "*** Titled Tuesday 3|2 Blitz"]
[Site "Chess.com"]
[Date "2017.06.06"]
[Round "5"]
[White "goingin33"]
[Black "dinevmk"]
[Result "1-0"]
[WhiteElo "2190"]
[BlackElo "1999"]
[TimeControl "180+2"]
[EndTime "14:54:37 PDT"]
[Termination "goingin33 won on time"]

1. d4 {[%clk 0:03:02]} 1... d6 {[%clk 0:03:00.1]} 2. e4 {[%clk 0:03:01.7]} 2...
Nf6 {[%clk 0:03:00.7]} 3. Nc3 {[%clk 0:03:01.2]} 3... g6 {[%clk 0:03:00.6]} 4.
Nf3 {[%clk 0:03:00.2]} 4... Bg7 {[%clk 0:03:01]} 5. Be2 {[%clk 0:03:01.7]} 5...
O-O {[%clk 0:03:01.4]} 6. O-O {[%clk 0:03:03.2]} 6... c6 {[%clk 0:03:02.1]} 7.
a4 {[%clk 0:03:02.9]} 7... a5 {[%clk 0:03:02.2]} 8. h3 {[%clk 0:03:03.9]} 8...
Na6 {[%clk 0:03:02.8]} 9. Be3 {[%clk 0:03:04.9]} 9... Nb4 {[%clk 0:03:03.1]} 10.
Nd2 {[%clk 0:03:01.5]} 10... e5 {[%clk 0:03:00.4]} 11. dxe5 {[%clk 0:03:00.8]}
11... dxe5 {[%clk 0:03:00.2]} 12. Nc4 {[%clk 0:02:42.6]} 12... Qe7 {[%clk
0:02:58.4]} 13. Bb6 {[%clk 0:02:22.5]} 13... Ra6 {[%clk 0:02:43.5]} 14. Bxa5
{[%clk 0:02:06.7]} 14... Be6 {[%clk 0:02:42.7]} 15. Bxb4 {[%clk 0:01:53.3]}
15... Qxb4 {[%clk 0:02:42.1]} 16. Nxe5 {[%clk 0:01:51]} 16... Raa8 {[%clk
0:02:40.7]} 17. Nd3 {[%clk 0:01:51.4]} 17... Qd4 {[%clk 0:02:36.9]} 18. Nf4
{[%clk 0:01:28.4]} 18... Qb4 {[%clk 0:02:33.2]} 19. Nxe6 {[%clk 0:01:28.1]}
19... fxe6 {[%clk 0:02:33.8]} 20. Qd3 {[%clk 0:01:28.9]} 20... Rfd8 {[%clk
0:02:09.1]} 21. Qc4 {[%clk 0:01:28.7]} 21... Qxb2 {[%clk 0:02:06.5]} 22. Bd3
{[%clk 0:01:29.9]} 22... Nd5 {[%clk 0:02:02.5]} 23. exd5 {[%clk 0:01:25.6]}
23... exd5 {[%clk 0:02:00.1]} 24. Nxd5 {[%clk 0:01:21.5]} 24... cxd5 {[%clk
0:01:58.6]} 25. Qb5 {[%clk 0:01:20.1]} 25... Qxb5 {[%clk 0:01:57.2]} 26. Bxb5
{[%clk 0:01:19.4]} 26... Bxa1 {[%clk 0:01:57]} 27. Rxa1 {[%clk 0:01:21.3]} 27...
Kf7 {[%clk 0:01:51.7]} 28. Rd1 {[%clk 0:01:21.1]} 28... Ke7 {[%clk 0:01:48.9]}
29. Re1+ {[%clk 0:01:21.6]} 29... Kd6 {[%clk 0:01:48.7]} 30. Rd1 {[%clk
0:01:22.6]} 30... Kc5 {[%clk 0:01:48.3]} 31. Rd3 {[%clk 0:01:23.4]} 31... Rac8
{[%clk 0:01:36.1]} 32. Rb3 {[%clk 0:01:13.7]} 32... d4 {[%clk 0:01:25.6]} 33.
Bd3 {[%clk 0:01:14.1]} 33... Rc7 {[%clk 0:01:20.9]} 34. Rb5+ {[%clk 0:01:09.8]}
34... Kd6 {[%clk 0:01:21.1]} 35. Be4 {[%clk 0:01:10.6]} 35... Rdd7 {[%clk
0:01:07.3]} 36. f4 {[%clk 0:01:02]} 36... Rc5 {[%clk 0:01:03.9]} 37. Rb4 {[%clk
0:00:54.8]} 37... Ke7 {[%clk 0:00:59.5]} 38. Kf2 {[%clk 0:00:55.9]} 38... Rc3
{[%clk 0:00:57.3]} 39. Bd3 {[%clk 0:00:52.1]} 39... Ra3 {[%clk 0:00:54.1]} 40.
Kf3 {[%clk 0:00:50.8]} 40... Kd8 {[%clk 0:00:49]} 41. g4 {[%clk 0:00:51.5]}
41... Ra1 {[%clk 0:00:48]} 42. f5 {[%clk 0:00:49.5]} 42... g5 {[%clk 0:00:43]}
43. f6 {[%clk 0:00:31.8]} 43... Rf7 {[%clk 0:00:39.2]} 44. Rxd4+ {[%clk
0:00:31.3]} 44... Kc7 {[%clk 0:00:39.8]} 45. Bf5 {[%clk 0:00:26.8]} 45... Rxf6
{[%clk 0:00:38.5]} 46. Rd7+ {[%clk 0:00:27.8]} 46... Kb6 {[%clk 0:00:34.8]} 47.
Rxh7 {[%clk 0:00:29.4]} 47... Rxa4 {[%clk 0:00:34]} 48. Rg7 {[%clk 0:00:29.6]}
48... Rf4+ {[%clk 0:00:34]} 49. Kg3 {[%clk 0:00:31]} 49... R4xf5 {[%clk
0:00:33.1]} 50. gxf5 {[%clk 0:00:32.9]} 50... Rxf5 {[%clk 0:00:33.8]} 51. Kg4
{[%clk 0:00:34.4]} 51... Rc5 {[%clk 0:00:31.4]} 52. Rg6+ {[%clk 0:00:35.6]}
52... Ka7 {[%clk 0:00:27]} 53. Rxg5 {[%clk 0:00:34.9]} 53... Rxc2 {[%clk
0:00:27.3]} 54. h4 {[%clk 0:00:36.3]} 54... Ka6 {[%clk 0:00:24.1]} 55. h5 {[%clk
0:00:35.5]} 55... Rg2+ {[%clk 0:00:19.8]} 56. Kf5 {[%clk 0:00:36]} 56... Rh2
{[%clk 0:00:20]} 57. Kg6 {[%clk 0:00:37.2]} 57... b5 {[%clk 0:00:20.3]} 58. h6
{[%clk 0:00:38.5]} 58... b4 {[%clk 0:00:19.5]} 59. h7 {[%clk 0:00:37.8]} 59...
b3 {[%clk 0:00:12.3]} 60. Rg3 {[%clk 0:00:34.4]} 60... b2 {[%clk 0:00:11.3]} 61.
Rb3 {[%clk 0:00:35.4]} 61... Ka5 {[%clk 0:00:09.6]} 62. Rxb2 {[%clk 0:00:34]}
62... Rh3 {[%clk 0:00:09.3]} 63. Rg2 {[%clk 0:00:30.5]} 63... Kb4 {[%clk
0:00:08.8]} 64. Kg7 {[%clk 0:00:31.5]} 64... Kc4 {[%clk 0:00:06]} 65. h8=Q
{[%clk 0:00:32.1]} 1-0

[Event "*** Titled Tuesday 3|2 Blitz"]
[Site "Chess.com"]
[Date "2017.06.06"]
[Round "5"]
[White "cukus"]
[Black "Paul66666"]
[Result "0-1"]
[WhiteElo "2441"]
[BlackElo "2570"]
[TimeControl "180+2"]
[EndTime "14:55:11 PDT"]
[Termination "Paul66666 won on time"]

1. e4 {[%clk 0:03:00.8]} 1... c5 {[%clk 0:02:57.6]} 2. Nf3 {[%clk 0:03:00.6]}
2... d6 {[%clk 0:02:54.1]} 3. d4 {[%clk 0:03:00.4]} 3... Nf6 {[%clk 0:02:55.2]}
4. Nc3 {[%clk 0:02:57.9]} 4... cxd4 {[%clk 0:02:56]} 5. Nxd4 {[%clk 0:02:59.8]}
5... Nc6 {[%clk 0:02:57.9]} 6. Bg5 {[%clk 0:02:57.4]} 6... e6 {[%clk 0:02:58.6]}
7. Qd2 {[%clk 0:02:56.9]} 7... a6 {[%clk 0:02:58.5]} 8. O-O-O {[%clk 0:02:51.2]}
8... h6 {[%clk 0:02:59.4]} 9. Nxc6 {[%clk 0:02:45.6]} 9... bxc6 {[%clk
0:03:01.3]} 10. Bf4 {[%clk 0:02:44.8]} 10... d5 {[%clk 0:03:02.6]} 11. Qe3
{[%clk 0:02:46.3]} 11... Bb4 {[%clk 0:02:57.5]} 12. Be2 {[%clk 0:02:37.8]} 12...
O-O {[%clk 0:02:52.1]} 13. e5 {[%clk 0:02:35.4]} 13... Nh7 {[%clk 0:02:50.3]}
14. h4 {[%clk 0:02:25.4]} 14... Qa5 {[%clk 0:02:49.7]} 15. Rh3 {[%clk
0:02:21.8]} 15... Bc5 {[%clk 0:02:50]} 16. Qd2 {[%clk 0:02:07.9]} 16... Kh8
{[%clk 0:02:44.2]} 17. Rg3 {[%clk 0:01:52.7]} 17... Ra7 {[%clk 0:02:36.1]} 18.
Kb1 {[%clk 0:01:35.2]} 18... Rb7 {[%clk 0:02:30.8]} 19. Ka1 {[%clk 0:01:35.6]}
19... Bb4 {[%clk 0:02:13.9]} 20. Qd3 {[%clk 0:01:17.2]} 20... c5 {[%clk
0:02:01.1]} 21. Qxa6 {[%clk 0:01:09.3]} 21... Bxc3 {[%clk 0:01:56.1]} 22. Rxc3
{[%clk 0:01:06.9]} 22... Qb4 {[%clk 0:01:45.4]} 23. Bc1 {[%clk 0:01:03.1]} 23...
c4 {[%clk 0:01:24.8]} 24. Qd6 {[%clk 0:00:59.5]} 24... Qb5 {[%clk 0:01:16.4]}
25. g4 {[%clk 0:00:54.4]} 25... Rb6 {[%clk 0:01:10.5]} 26. Qe7 {[%clk
0:00:50.3]} 26... Rb7 {[%clk 0:01:08.9]} 27. Qd6 {[%clk 0:00:49.4]} 27... Rb6
{[%clk 0:01:01.6]} 28. Qa3 {[%clk 0:00:49]} 28... Ra6 {[%clk 0:00:57.6]} 29. Qe7
{[%clk 0:00:48.9]} 29... Kg8 {[%clk 0:00:58.6]} 30. g5 {[%clk 0:00:42.1]} 30...
Re8 {[%clk 0:00:59.5]} 31. Qc7 {[%clk 0:00:37.6]} 31... hxg5 {[%clk 0:00:53.5]}
32. hxg5 {[%clk 0:00:39.5]} 32... Bd7 {[%clk 0:00:42.3]} 33. g6 {[%clk
0:00:35.7]} 33... fxg6 {[%clk 0:00:41.4]} 34. Bxc4 {[%clk 0:00:32.4]} 34... Rea8
{[%clk 0:00:29.7]} 35. a3 {[%clk 0:00:30.9]} 35... Qa4 {[%clk 0:00:06.6]} 36.
Bxa6 {[%clk 0:00:26.2]} 36... Rxa6 {[%clk 0:00:08.5]} 37. Rb3 {[%clk 0:00:20.5]}
37... Nf8 {[%clk 0:00:08.1]} 38. Rb8 {[%clk 0:00:18.2]} 38... Ra8 {[%clk
0:00:07.4]} 39. Rxa8 {[%clk 0:00:16.4]} 39... Qxa8 {[%clk 0:00:09.3]} 40. Qc5
{[%clk 0:00:17.6]} 40... Qa4 {[%clk 0:00:08.8]} 41. Be3 {[%clk 0:00:16.9]} 41...
Qg4 {[%clk 0:00:09.3]} 42. Qd4 {[%clk 0:00:16.8]} 42... Qf3 {[%clk 0:00:09.4]}
43. Qd3 {[%clk 0:00:13.7]} 43... Bb5 {[%clk 0:00:07.4]} 44. Qd2 {[%clk
0:00:13.3]} 44... Be2 {[%clk 0:00:07.6]} 45. Re1 {[%clk 0:00:13.5]} 45... Bc4
{[%clk 0:00:08.7]} 46. Bc5 {[%clk 0:00:13.6]} 46... Nd7 {[%clk 0:00:08.2]} 47.
Bd6 {[%clk 0:00:15]} 47... g5 {[%clk 0:00:07.6]} 48. Qe3 {[%clk 0:00:12.2]}
48... Qf5 {[%clk 0:00:07.5]} 49. Qc3 {[%clk 0:00:09.4]} 49... g4 {[%clk
0:00:07.3]} 50. a4 {[%clk 0:00:08.9]} 50... Nb6 {[%clk 0:00:06.4]} 51. a5 {[%clk
0:00:06.7]} 51... Na4 {[%clk 0:00:07]} 52. Qb4 {[%clk 0:00:06.6]} 52... Qxc2
{[%clk 0:00:07]} 53. Be7 {[%clk 0:00:04.7]} 53... Kf7 {[%clk 0:00:06.9]} 54. Bd6
{[%clk 0:00:05.7]} 54... Kg6 {[%clk 0:00:06.9]} 55. Rb1 {[%clk 0:00:04.5]} 55...
Bd3 {[%clk 0:00:04.7]} 56. Re1 {[%clk 0:00:04.3]} 56... d4 {[%clk 0:00:04.4]}
57. Qa3 {[%clk 0:00:05.3]} 57... Bf5 {[%clk 0:00:03.1]} 58. Bb4 {[%clk
0:00:05.8]} 58... d3 {[%clk 0:00:03.1]} 59. a6 {[%clk 0:00:04.9]} 59... d2
{[%clk 0:00:03.7]} 60. Bxd2 {[%clk 0:00:06.6]} 60... Qxd2 {[%clk 0:00:05.4]} 61.
Rg1 {[%clk 0:00:05.8]} 61... Nb6 {[%clk 0:00:05.4]} 62. a7 {[%clk 0:00:06.5]}
62... Na8 {[%clk 0:00:06.4]} 63. Qc3 {[%clk 0:00:05.1]} 63... Qxf2 {[%clk
0:00:06.9]} 64. Re1 {[%clk 0:00:02.4]} 64... Qxa7+ {[%clk 0:00:07.2]} 65. Qa3
{[%clk 0:00:04.3]} 65... Qb7 {[%clk 0:00:08.1]} 66. Rd1 {[%clk 0:00:03.2]} 66...
Nb6 {[%clk 0:00:08.8]} 67. Qb4 {[%clk 0:00:03.1]} 67... Qa6+ {[%clk 0:00:09]}
68. Qa3 {[%clk 0:00:04.5]} 68... Qb5 {[%clk 0:00:09.5]} 69. Rc1 {[%clk 0:00:04]}
69... Nc4 {[%clk 0:00:09.7]} 0-1

[Event "*** Titled Tuesday 3|2 Blitz"]
[Site "Chess.com"]
[Date "2017.06.06"]
[Round "5"]
[White "Hamisandwich"]
[Black "kleinebeer98"]
[Result "1-0"]
[WhiteElo "2451"]
[BlackElo "2447"]
[TimeControl "180+2"]
[EndTime "14:56:36 PDT"]
[Termination "Hamisandwich won on time"]

1. g3 {[%clk 0:03:02]} 1... Nf6 {[%clk 0:02:58.7]} 2. Bg2 {[%clk 0:03:01.7]}
2... e6 {[%clk 0:02:57.7]} 3. f4 {[%clk 0:03:02.3]} 3... c5 {[%clk 0:02:57]} 4.
Nf3 {[%clk 0:03:02.6]} 4... Nc6 {[%clk 0:02:57.3]} 5. O-O {[%clk 0:03:03.5]}
5... d5 {[%clk 0:02:58.3]} 6. d3 {[%clk 0:03:04]} 6... d4 {[%clk 0:02:55.1]} 7.
c4 {[%clk 0:02:55.2]} 7... Be7 {[%clk 0:02:49.1]} 8. a3 {[%clk 0:02:52.5]} 8...
a5 {[%clk 0:02:49.5]} 9. Kh1 {[%clk 0:02:34.8]} 9... O-O {[%clk 0:02:44.7]} 10.
e4 {[%clk 0:02:34.9]} 10... dxe3 {[%clk 0:02:38.3]} 11. Bxe3 {[%clk 0:02:35.4]}
11... Qb6 {[%clk 0:02:35]} 12. Nc3 {[%clk 0:02:31]} 12... Rd8 {[%clk 0:02:24.6]}
13. Na4 {[%clk 0:02:17.2]} 13... Qa7 {[%clk 0:02:18.8]} 14. Qb3 {[%clk
0:02:17.3]} 14... Nd4 {[%clk 0:02:10.5]} 15. Nxd4 {[%clk 0:02:13]} 15... cxd4
{[%clk 0:02:12.4]} 16. Bg1 {[%clk 0:02:10.6]} 16... Bd7 {[%clk 0:01:53.2]} 17.
Rfe1 {[%clk 0:01:37.3]} 17... Rab8 {[%clk 0:01:45.5]} 18. Qb6 {[%clk 0:01:34.1]}
18... Qa6 {[%clk 0:01:32.7]} 19. b3 {[%clk 0:01:17.2]} 19... Bxa4 {[%clk
0:01:33.1]} 20. Qxa6 {[%clk 0:01:18.3]} 20... bxa6 {[%clk 0:01:35]} 21. bxa4
{[%clk 0:01:20.2]} 21... Rb3 {[%clk 0:01:36.8]} 22. Bf1 {[%clk 0:01:11.5]} 22...
Bxa3 {[%clk 0:01:34.1]} 23. Reb1 {[%clk 0:01:05.2]} 23... Rxb1 {[%clk
0:01:18.7]} 24. Rxb1 {[%clk 0:01:07.1]} 24... Bb4 {[%clk 0:01:20.6]} 25. Bg2
{[%clk 0:01:06.8]} 25... Ne8 {[%clk 0:01:02.9]} 26. Rc1 {[%clk 0:01:03.4]} 26...
Bc5 {[%clk 0:00:42.1]} 27. Rb1 {[%clk 0:01:03.7]} 27... Nd6 {[%clk 0:00:43.6]}
28. Bf3 {[%clk 0:00:51.4]} 28... Kf8 {[%clk 0:00:38.3]} 29. Bf2 {[%clk
0:00:48.3]} 29... Ke7 {[%clk 0:00:38.8]} 30. Be1 {[%clk 0:00:45.5]} 30... Bb4
{[%clk 0:00:27.1]} 31. Bxb4 {[%clk 0:00:45.7]} 31... axb4 {[%clk 0:00:29]} 32.
Rxb4 {[%clk 0:00:46.2]} 32... a5 {[%clk 0:00:22.1]} 33. Rb6 {[%clk 0:00:44.4]}
33... f6 {[%clk 0:00:20.5]} 34. c5 {[%clk 0:00:41.7]} 34... Nf5 {[%clk 0:00:21]}
35. Rb7+ {[%clk 0:00:41.1]} 35... Kf8 {[%clk 0:00:16.9]} 36. Ra7 {[%clk
0:00:34.3]} 36... Rb8 {[%clk 0:00:12.1]} 37. Bb7 {[%clk 0:00:32]} 37... Ke7
{[%clk 0:00:10.7]} 38. Bd5+ {[%clk 0:00:27.1]} 38... Kd8 {[%clk 0:00:08.9]} 39.
Bxe6 {[%clk 0:00:26.3]} 39... Ne3 {[%clk 0:00:09.8]} 40. Kg1 {[%clk 0:00:19.3]}
40... Rb2 {[%clk 0:00:06.1]} 41. c6 {[%clk 0:00:14.8]} 41... Rg2+ {[%clk
0:00:06.6]} 42. Kh1 {[%clk 0:00:15.3]} 42... Rc2 {[%clk 0:00:08.5]} 43. h4
{[%clk 0:00:05.7]} 43... Rxc6 {[%clk 0:00:07.6]} 44. f5 {[%clk 0:00:07]} 44...
Rc1+ {[%clk 0:00:07.3]} 45. Kh2 {[%clk 0:00:07.5]} 45... Ng4+ {[%clk 0:00:07]}
46. Kg2 {[%clk 0:00:08.4]} 46... h5 {[%clk 0:00:07.6]} 47. Kf3 {[%clk
0:00:07.7]} 47... Re1 {[%clk 0:00:06.4]} 48. Rxa5 {[%clk 0:00:06.4]} 48... Ne5+
{[%clk 0:00:06.5]} 49. Kg2 {[%clk 0:00:05.9]} 49... Nxd3 {[%clk 0:00:08.4]} 50.
Rd5+ {[%clk 0:00:06.8]} 50... Ke7 {[%clk 0:00:09.1]} 51. Rd7+ {[%clk 0:00:08.1]}
51... Kf8 {[%clk 0:00:08.8]} 52. Rd8+ {[%clk 0:00:09.5]} 52... Ke7 {[%clk
0:00:08.1]} 53. Rd7+ {[%clk 0:00:07.9]} 53... Ke8 {[%clk 0:00:08.7]} 54. Rxd4
{[%clk 0:00:09.8]} 54... Ne5 {[%clk 0:00:07.9]} 55. Rb4 {[%clk 0:00:09.4]} 55...
Re2+ {[%clk 0:00:08.7]} 56. Kf1 {[%clk 0:00:10.3]} 56... Rd2 {[%clk 0:00:07.2]}
57. a5 {[%clk 0:00:09.8]} 57... Nf3 {[%clk 0:00:07.5]} 58. Rb3 {[%clk
0:00:05.4]} 58... Nd4 {[%clk 0:00:05.5]} 59. Ra3 {[%clk 0:00:06.1]} 59... Rd1+
{[%clk 0:00:03.3]} 60. Kf2 {[%clk 0:00:06.3]} 60... Rb1 {[%clk 0:00:04.4]} 61.
a6 {[%clk 0:00:06.8]} 61... Rb2+ {[%clk 0:00:05.6]} 62. Kf1 {[%clk 0:00:07.1]}
62... Rb1+ {[%clk 0:00:06.1]} 63. Kf2 {[%clk 0:00:06.8]} 63... Rb2+ {[%clk
0:00:08]} 64. Ke3 {[%clk 0:00:06.6]} 64... Nc2+ {[%clk 0:00:09]} 65. Kd3 {[%clk
0:00:07.9]} 65... Nxa3 {[%clk 0:00:10]} 66. a7 {[%clk 0:00:09.3]} 66... Nb5
{[%clk 0:00:05.5]} 67. a8=Q+ {[%clk 0:00:10]} 67... Ke7 {[%clk 0:00:07.4]} 68.
Qb7+ {[%clk 0:00:11.1]} 68... Kd6 {[%clk 0:00:08.6]} 69. Qd7+ {[%clk 0:00:11.8]}
69... Kc5 {[%clk 0:00:09.7]} 70. Qd5+ {[%clk 0:00:13.2]} 70... Kb6 {[%clk
0:00:10.9]} 71. Qd8+ {[%clk 0:00:11.8]} 71... Kc5 {[%clk 0:00:11.3]} 72. Qe7+
{[%clk 0:00:12.9]} 72... Kb6 {[%clk 0:00:11.2]} 73. Qxg7 {[%clk 0:00:13.5]}
73... Rg2 {[%clk 0:00:10.2]} 74. Bd5 {[%clk 0:00:12]} 74... Rg1 {[%clk
0:00:09.1]} 75. Qxf6+ {[%clk 0:00:12.1]} 75... Kc5 {[%clk 0:00:09.6]} 76. Qc6+
{[%clk 0:00:10.1]} 76... Kb4 {[%clk 0:00:10.7]} 77. Qc4+ {[%clk 0:00:10.1]}
77... Ka5 {[%clk 0:00:11.3]} 78. Qf4 {[%clk 0:00:10.4]} 78... Rd1+ {[%clk
0:00:10.7]} 79. Ke4 {[%clk 0:00:11.1]} 79... Nc3+ {[%clk 0:00:07.5]} 80. Ke5
{[%clk 0:00:10]} 80... Rxd5+ {[%clk 0:00:08.4]} 81. Ke6 {[%clk 0:00:07.7]} 81...
Rc5 {[%clk 0:00:10.3]} 82. Qe5 {[%clk 0:00:08.3]} 82... Kb4 {[%clk 0:00:09.5]}
83. Qxc5+ {[%clk 0:00:08.5]} 83... Kxc5 {[%clk 0:00:11.4]} 84. f6 {[%clk
0:00:10.4]} 84... Nb5 {[%clk 0:00:06.2]} 85. f7 {[%clk 0:00:12.3]} 85... Nc7+
{[%clk 0:00:06.4]} 86. Kf5 {[%clk 0:00:13.1]} 86... Ne6 {[%clk 0:00:01.6]} 87.
Kxe6 {[%clk 0:00:13.4]} 1-0